[Event "Titled Tuesday Blitz November 15 Late 2022"]
[White "Sarana, Alexey"]
[Black "Makridis, Dimitrios"]
[WhiteFideId "24133795"]
[BlackFideId "25864475"]
[WhiteElo "2708"]
[BlackElo "2272"]
[Result "1-0"]
[Round "03"]
[TimeControl "180+1"]
[Date "2022.11.15"]
[WhiteClock "0:00:04"]
[BlackClock "0:00:03"]

1. c4 {[%clk 0:03:00]}  e6 {[%clk 0:02:58]} 2. Nc3 {[%clk 0:03:01]}  d5 {[%clk 0:02:58]} 3. d4 {[%clk 0:03:01]}  h6 {[%clk 0:02:57]} 4. cxd5 {[%clk 0:02:59]}  exd5 {[%clk 0:02:58]} 5. Bf4 {[%clk 0:02:59]}  c6 {[%clk 0:02:58]} 6. e3 {[%clk 0:02:59]}  Ne7 {[%clk 0:02:53]} 7. Nf3 {[%clk 0:02:54]}  Ng6 {[%clk 0:02:52]} 8. Bg3 {[%clk 0:02:54]}  Bd6 {[%clk 0:02:53]} 9. Bd3 {[%clk 0:02:54]}  O-O {[%clk 0:02:51]} 10. Qc2 {[%clk 0:02:46]}  Ne7 {[%clk 0:02:29]} 11. O-O {[%clk 0:02:34]}  Bxg3 {[%clk 0:02:28]} 12. hxg3 {[%clk 0:02:35]}  Nd7 {[%clk 0:02:29]} 13. b4 {[%clk 0:02:35]}  a6 {[%clk 0:02:22]} 14. a4 {[%clk 0:02:34]}  Nb6 {[%clk 0:02:23]} 15. Ne2 {[%clk 0:02:30]}  Qd6 {[%clk 0:02:10]} 16. b5 {[%clk 0:02:27]}  cxb5 {[%clk 0:02:09]} 17. axb5 {[%clk 0:02:28]}  a5 {[%clk 0:02:10]} 18. Qc5 {[%clk 0:02:18]}  Rd8 {[%clk 0:02:09]} 19. Ne5 {[%clk 0:02:16]}  f6 {[%clk 0:02:06]} 20. Nf3 {[%clk 0:02:10]}  Bg4 {[%clk 0:02:00]} 21. Rfc1 {[%clk 0:02:10]}  a4 {[%clk 0:01:54]} 22. Qxd6 {[%clk 0:01:50]}  Rxd6 {[%clk 0:01:53]} 23. Nc3 {[%clk 0:01:50]}  Bf5 {[%clk 0:01:28]} 24. Be2 {[%clk 0:01:45]}  Ra5 {[%clk 0:01:05]} 25. Ra3 {[%clk 0:01:41]}  Rd8 {[%clk 0:00:57]} 26. Nd2 {[%clk 0:01:41]}  Rda8 {[%clk 0:00:54]} 27. Rca1 {[%clk 0:01:38]}  Nec8 {[%clk 0:00:36]} 28. Bf3 {[%clk 0:00:43]}  Be6 {[%clk 0:00:30]} 29. Nb3 {[%clk 0:00:38]}  R5a7 {[%clk 0:00:28]} 30. Nc5 {[%clk 0:00:38]}  Bf7 {[%clk 0:00:22]} 31. N5xa4 {[%clk 0:00:24]}  Nd6 {[%clk 0:00:19]} 32. R3a2 {[%clk 0:00:25]}  Nxa4 {[%clk 0:00:17]} 33. Rxa4 {[%clk 0:00:22]}  Rxa4 {[%clk 0:00:17]} 34. Rxa4 {[%clk 0:00:22]}  Rxa4 {[%clk 0:00:17]} 35. Nxa4 {[%clk 0:00:23]}  Nxb5 {[%clk 0:00:18]} 36. Kf1 {[%clk 0:00:23]}  Kf8 {[%clk 0:00:18]} 37. Nc5 {[%clk 0:00:18]}  Nd6 {[%clk 0:00:16]} 38. Nd7+ {[%clk 0:00:19]}  Ke7 {[%clk 0:00:17]} 39. Nb6 {[%clk 0:00:19]}  Ne4 {[%clk 0:00:16]} 40. Bd1 {[%clk 0:00:19]}  Kd6 {[%clk 0:00:16]} 41. f3 {[%clk 0:00:15]}  Nd2+ {[%clk 0:00:16]} 42. Ke2 {[%clk 0:00:14]}  Nc4 {[%clk 0:00:16]} 43. Na4 {[%clk 0:00:14]}  b5 {[%clk 0:00:15]} 44. Nc5 {[%clk 0:00:14]}  Kc6 {[%clk 0:00:16]} 45. Bb3 {[%clk 0:00:13]}  Kb6 {[%clk 0:00:09]} 46. Kd3 {[%clk 0:00:12]}  Ka5 {[%clk 0:00:09]} 47. Kc3 {[%clk 0:00:12]}  b4+ {[%clk 0:00:09]} 48. Kd3 {[%clk 0:00:12]}  Kb5 {[%clk 0:00:10]} 49. e4 {[%clk 0:00:12]}  dxe4+ {[%clk 0:00:09]} 50. fxe4 {[%clk 0:00:05]}  Nb2+ {[%clk 0:00:08]} 51. Kc2 {[%clk 0:00:06]}  Bxb3+ {[%clk 0:00:08]} 52. Nxb3 {[%clk 0:00:03]}  Nc4 {[%clk 0:00:07]} 53. Kd3 {[%clk 0:00:03]}  Na5 {[%clk 0:00:07]} 54. Nxa5 {[%clk 0:00:03]}  Kxa5 {[%clk 0:00:07]} 55. d5 {[%clk 0:00:02]}  Ka4 {[%clk 0:00:06]} 56. d6 {[%clk 0:00:03]}  b3 {[%clk 0:00:07]} 57. d7 {[%clk 0:00:03]}  b2 {[%clk 0:00:03]} 58. Kc2 {[%clk 0:00:04]}  Ka3 {[%clk 0:00:03]} 59. d8=Q {[%clk 0:00:04]} 1-0


[Site "https://www.chess.com"]

[Event "Titled Tuesday Blitz November 15 Late 2022"]
[White "Sariego Figueredo, Wilfredo"]
[Black "Antonio, Jorge Carlos"]
[WhiteFideId "3500080"]
[BlackFideId "113190"]
[WhiteElo "2309"]
[BlackElo "2247"]
[Result "1-0"]
[Round "03"]
[TimeControl "180+1"]
[Date "2022.11.16"]
[WhiteClock "0:00:15"]
[BlackClock "0:00:39"]

1. d4 {[%clk 0:02:59]}  d5 {[%clk 0:02:50]} 2. Bf4 {[%clk 0:02:58]}  c6 {[%clk 0:02:49]} 3. e3 {[%clk 0:02:55]}  Bf5 {[%clk 0:02:46]} 4. Bd3 {[%clk 0:02:50]}  Bxd3 {[%clk 0:02:45]} 5. cxd3 {[%clk 0:02:48]}  e6 {[%clk 0:02:46]} 6. Nc3 {[%clk 0:02:47]}  Bd6 {[%clk 0:02:45]} 7. Be5 {[%clk 0:02:43]}  Bxe5 {[%clk 0:02:40]} 8. dxe5 {[%clk 0:02:43]}  Ne7 {[%clk 0:02:40]} 9. Nf3 {[%clk 0:02:40]}  Nd7 {[%clk 0:02:40]} 10. O-O {[%clk 0:02:38]}  O-O {[%clk 0:02:40]} 11. d4 {[%clk 0:02:32]}  c5 {[%clk 0:02:39]} 12. Nb5 {[%clk 0:02:30]}  Nc8 {[%clk 0:02:36]} 13. Qc2 {[%clk 0:02:23]}  a6 {[%clk 0:02:35]} 14. Nc3 {[%clk 0:02:13]}  Qc7 {[%clk 0:02:34]} 15. Rfc1 {[%clk 0:02:11]}  cxd4 {[%clk 0:02:32]} 16. exd4 {[%clk 0:02:10]}  Ne7 {[%clk 0:02:30]} 17. Na4 {[%clk 0:02:06]}  Qxc2 {[%clk 0:02:29]} 18. Rxc2 {[%clk 0:02:07]}  Rac8 {[%clk 0:02:29]} 19. Rac1 {[%clk 0:02:04]}  Rxc2 {[%clk 0:02:28]} 20. Rxc2 {[%clk 0:02:05]}  Rc8 {[%clk 0:02:27]} 21. Rxc8+ {[%clk 0:02:02]}  Nxc8 {[%clk 0:02:26]} 22. Kf1 {[%clk 0:02:02]}  Kf8 {[%clk 0:02:26]} 23. Ke2 {[%clk 0:02:01]}  Ke7 {[%clk 0:02:26]} 24. Kd3 {[%clk 0:02:01]}  b5 {[%clk 0:02:26]} 25. Nc3 {[%clk 0:01:59]}  Ncb6 {[%clk 0:02:20]} 26. b3 {[%clk 0:01:59]}  Nb8 {[%clk 0:02:15]} 27. Ne1 {[%clk 0:01:59]}  Nc6 {[%clk 0:02:15]} 28. Nc2 {[%clk 0:01:58]}  Kd7 {[%clk 0:02:04]} 29. f4 {[%clk 0:01:53]}  f6 {[%clk 0:02:02]} 30. a3 {[%clk 0:01:51]}  f5 {[%clk 0:02:01]} 31. Ne1 {[%clk 0:01:36]}  Na5 {[%clk 0:02:00]} 32. Kc2 {[%clk 0:01:34]}  Nc8 {[%clk 0:01:51]} 33. Nd3 {[%clk 0:01:33]}  Nb7 {[%clk 0:01:39]} 34. Ne2 {[%clk 0:01:27]}  Kc6 {[%clk 0:01:38]} 35. Nec1 {[%clk 0:01:23]}  Ne7 {[%clk 0:01:35]} 36. b4 {[%clk 0:01:17]}  Nc8 {[%clk 0:01:32]} 37. Kc3 {[%clk 0:01:13]}  Nb6 {[%clk 0:01:32]} 38. Nb2 {[%clk 0:01:11]}  Nc4 {[%clk 0:01:31]} 39. Nxc4 {[%clk 0:01:04]}  dxc4 {[%clk 0:01:31]} 40. a4 {[%clk 0:00:53]}  Kd5 {[%clk 0:01:31]} 41. axb5 {[%clk 0:00:51]}  axb5 {[%clk 0:01:29]} 42. Ne2 {[%clk 0:00:50]}  Ke4 {[%clk 0:01:28]} 43. Kd2 {[%clk 0:00:42]}  Nd8 {[%clk 0:01:22]} 44. g3 {[%clk 0:00:38]}  Nc6 {[%clk 0:01:21]} 45. Kc3 {[%clk 0:00:36]}  Ke3 {[%clk 0:01:20]} 46. Ng1 {[%clk 0:00:31]}  Nxd4 {[%clk 0:01:18]} 47. Nh3 {[%clk 0:00:31]}  h6 {[%clk 0:01:16]} 48. Ng1 {[%clk 0:00:20]}  Ne2+ {[%clk 0:01:12]} 49. Nxe2 {[%clk 0:00:20]}  Kxe2 {[%clk 0:01:12]} 50. g4 {[%clk 0:00:19]}  Kf3 {[%clk 0:01:10]} 51. gxf5 {[%clk 0:00:18]}  exf5 {[%clk 0:00:57]} 52. e6 {[%clk 0:00:18]}  Kxf4 {[%clk 0:00:56]} 53. e7 {[%clk 0:00:18]}  g5 {[%clk 0:00:57]} 54. e8=Q {[%clk 0:00:18]}  Kg4 {[%clk 0:00:56]} 55. Qg6 {[%clk 0:00:17]}  f4 {[%clk 0:00:55]} 56. Qxh6 {[%clk 0:00:17]}  f3 {[%clk 0:00:54]} 57. Qf6 {[%clk 0:00:16]}  Kh3 {[%clk 0:00:42]} 58. Qxf3+ {[%clk 0:00:16]}  Kxh2 {[%clk 0:00:41]} 59. Qg4 {[%clk 0:00:16]}  Kh1 {[%clk 0:00:39]} 60. Qxg5 {[%clk 0:00:15]}  Kh2 {[%clk 0:00:39]} 61. Qxb5 {[%clk 0:00:15]} 1-0


[Site "https://www.chess.com"]

[Event "Titled Tuesday Blitz November 15 Late 2022"]
[White "Saveliev, Alexei"]
[Black "Quirke, Jeffrey"]
[WhiteFideId "24128546"]
[BlackFideId "2013029"]
[WhiteElo "2290"]
[BlackElo "2214"]
[Result "1-0"]
[Round "03"]
[TimeControl "180+1"]
[Date "2022.11.16"]
[WhiteClock "0:00:04"]
[BlackClock "0:00:04"]

1. c4 {[%clk 0:02:59]}  c6 {[%clk 0:02:58]} 2. Nc3 {[%clk 0:03:00]}  d5 {[%clk 0:02:58]} 3. cxd5 {[%clk 0:03:01]}  cxd5 {[%clk 0:02:58]} 4. d4 {[%clk 0:03:01]}  Nf6 {[%clk 0:02:57]} 5. Nf3 {[%clk 0:03:02]}  Nc6 {[%clk 0:02:56]} 6. Bg5 {[%clk 0:03:02]}  Ne4 {[%clk 0:02:49]} 7. Bh4 {[%clk 0:03:02]}  Nxc3 {[%clk 0:02:44]} 8. bxc3 {[%clk 0:03:03]}  Qa5 {[%clk 0:02:44]} 9. Qd2 {[%clk 0:03:02]}  Bf5 {[%clk 0:02:38]} 10. e3 {[%clk 0:03:02]}  e6 {[%clk 0:02:37]} 11. Bd3 {[%clk 0:03:02]}  Bxd3 {[%clk 0:02:29]} 12. Qxd3 {[%clk 0:03:03]}  Ba3 {[%clk 0:02:25]} 13. O-O {[%clk 0:02:58]}  O-O {[%clk 0:02:16]} 14. Rab1 {[%clk 0:02:56]}  b6 {[%clk 0:02:09]} 15. Nd2 {[%clk 0:02:39]}  Be7 {[%clk 0:02:00]} 16. Bxe7 {[%clk 0:02:31]}  Nxe7 {[%clk 0:02:00]} 17. c4 {[%clk 0:02:24]}  Rfc8 {[%clk 0:01:57]} 18. a3 {[%clk 0:02:08]}  Qa6 {[%clk 0:01:54]} 19. Rfc1 {[%clk 0:02:06]}  h6 {[%clk 0:01:49]} 20. h3 {[%clk 0:01:58]}  Nf5 {[%clk 0:01:49]} 21. Qb3 {[%clk 0:01:54]}  dxc4 {[%clk 0:01:38]} 22. Nxc4 {[%clk 0:01:55]}  Qb7 {[%clk 0:01:34]} 23. Ne5 {[%clk 0:01:33]}  Nh4 {[%clk 0:01:18]} 24. f3 {[%clk 0:01:26]}  Nf5 {[%clk 0:01:08]} 25. Kf2 {[%clk 0:01:17]}  h5 {[%clk 0:00:59]} 26. g4 {[%clk 0:01:13]}  Nh4 {[%clk 0:00:33]} 27. e4 {[%clk 0:01:08]}  Qe7 {[%clk 0:00:27]} 28. Qe3 {[%clk 0:01:00]}  Qf6 {[%clk 0:00:23]} 29. g5 {[%clk 0:00:58]}  Qe7 {[%clk 0:00:20]} 30. Kg3 {[%clk 0:00:47]}  Ng6 {[%clk 0:00:19]} 31. Nxg6 {[%clk 0:00:47]}  fxg6 {[%clk 0:00:20]} 32. Qf4 {[%clk 0:00:44]}  Rf8 {[%clk 0:00:19]} 33. Qe5 {[%clk 0:00:43]}  Rf7 {[%clk 0:00:08]} 34. Rb3 {[%clk 0:00:35]}  Rf5 {[%clk 0:00:06]} 35. exf5 {[%clk 0:00:21]}  Qxg5+ {[%clk 0:00:06]} 36. Kh2 {[%clk 0:00:20]}  Qxc1 {[%clk 0:00:07]} 37. Qxe6+ {[%clk 0:00:18]}  Kh8 {[%clk 0:00:07]} 38. Re3 {[%clk 0:00:11]}  Rf8 {[%clk 0:00:04]} 39. fxg6 {[%clk 0:00:06]}  Qc2+ {[%clk 0:00:03]} 40. Re2 {[%clk 0:00:06]}  Qd3 {[%clk 0:00:02]} 41. Qe4 {[%clk 0:00:04]}  Qxa3 {[%clk 0:00:02]} 42. Kg3 {[%clk 0:00:01]}  Qd6+ {[%clk 0:00:02]} 43. Qe5 {[%clk 0:00:02]}  Qxe5+ {[%clk 0:00:02]} 44. dxe5 {[%clk 0:00:01]}  Rf6 {[%clk 0:00:03]} 45. exf6 {[%clk 0:00:02]}  gxf6 {[%clk 0:00:03]} 46. Re7 {[%clk 0:00:02]}  Kg8 {[%clk 0:00:02]} 47. Kf4 {[%clk 0:00:03]}  b5 {[%clk 0:00:02]} 48. Kf5 {[%clk 0:00:03]}  b4 {[%clk 0:00:03]} 49. Kxf6 {[%clk 0:00:03]}  b3 {[%clk 0:00:04]} 50. Re8# {[%clk 0:00:04]} 1-0


[Site "https://www.chess.com"]

[Event "Titled Tuesday Blitz November 15 Late 2022"]
[White "Saydaliev, Saidakbar"]
[Black "Krallis, Christos"]
[WhiteFideId "14203693"]
[BlackFideId "4298896"]
[WhiteElo "2276"]
[BlackElo "2243"]
[Result "1-0"]
[Round "03"]
[TimeControl "180+1"]
[Date "2022.11.16"]
[WhiteClock "0:00:21"]
[BlackClock "0:00:06"]

1. Nf3 {[%clk 0:03:00]}  Nf6 {[%clk 0:02:58]} 2. b3 {[%clk 0:02:59]}  g6 {[%clk 0:02:58]} 3. Bb2 {[%clk 0:02:59]}  Bg7 {[%clk 0:02:59]} 4. g3 {[%clk 0:03:00]}  O-O {[%clk 0:02:59]} 5. Bg2 {[%clk 0:03:00]}  c5 {[%clk 0:02:58]} 6. c4 {[%clk 0:02:59]}  Nc6 {[%clk 0:02:58]} 7. O-O {[%clk 0:02:58]}  d6 {[%clk 0:02:58]} 8. d4 {[%clk 0:02:57]}  Ne4 {[%clk 0:02:57]} 9. e3 {[%clk 0:02:57]}  f5 {[%clk 0:02:53]} 10. Nbd2 {[%clk 0:02:54]}  Nxd2 {[%clk 0:02:40]} 11. Qxd2 {[%clk 0:02:45]}  e5 {[%clk 0:02:19]} 12. dxe5 {[%clk 0:02:43]}  dxe5 {[%clk 0:02:14]} 13. Qd5+ {[%clk 0:02:37]}  Qxd5 {[%clk 0:02:06]} 14. cxd5 {[%clk 0:02:38]}  Nb4 {[%clk 0:01:58]} 15. Nxe5 {[%clk 0:02:38]}  Re8 {[%clk 0:01:43]} 16. Nc4 {[%clk 0:02:34]}  Bxb2 {[%clk 0:01:36]} 17. Nxb2 {[%clk 0:02:35]}  Bd7 {[%clk 0:01:34]} 18. Rfd1 {[%clk 0:02:27]}  Rad8 {[%clk 0:01:31]} 19. a3 {[%clk 0:02:25]}  Na6 {[%clk 0:01:29]} 20. Nc4 {[%clk 0:02:15]}  b6 {[%clk 0:01:26]} 21. Re1 {[%clk 0:02:11]}  Nc7 {[%clk 0:01:24]} 22. Rad1 {[%clk 0:02:09]}  Bb5 {[%clk 0:01:10]} 23. d6 {[%clk 0:02:01]}  Ne6 {[%clk 0:01:07]} 24. a4 {[%clk 0:01:50]}  Bxc4 {[%clk 0:00:54]} 25. bxc4 {[%clk 0:01:51]}  Kg7 {[%clk 0:00:50]} 26. Bc6 {[%clk 0:01:43]}  Rf8 {[%clk 0:00:49]} 27. f3 {[%clk 0:01:43]}  Rf6 {[%clk 0:00:46]} 28. Rd3 {[%clk 0:01:34]}  g5 {[%clk 0:00:41]} 29. Red1 {[%clk 0:01:32]}  f4 {[%clk 0:00:41]} 30. Re1 {[%clk 0:01:12]}  fxe3 {[%clk 0:00:36]} 31. Rexe3 {[%clk 0:01:07]}  Nd4 {[%clk 0:00:36]} 32. Bd5 {[%clk 0:00:57]}  Rdxd6 {[%clk 0:00:26]} 33. Re7+ {[%clk 0:00:57]}  Kh6 {[%clk 0:00:24]} 34. Be4 {[%clk 0:00:54]}  g4 {[%clk 0:00:16]} 35. Rxh7+ {[%clk 0:00:37]}  Kg5 {[%clk 0:00:15]} 36. f4+ {[%clk 0:00:38]}  Rxf4 {[%clk 0:00:16]} 37. gxf4+ {[%clk 0:00:39]}  Kxf4 {[%clk 0:00:17]} 38. Bd5 {[%clk 0:00:39]}  Rf6 {[%clk 0:00:13]} 39. Kg2 {[%clk 0:00:35]}  Nc2 {[%clk 0:00:11]} 40. Re7 {[%clk 0:00:29]}  Nd4 {[%clk 0:00:09]} 41. Rf7 {[%clk 0:00:26]}  Rxf7 {[%clk 0:00:08]} 42. Bxf7 {[%clk 0:00:27]}  Ke4 {[%clk 0:00:08]} 43. Rg3 {[%clk 0:00:27]}  Kf4 {[%clk 0:00:08]} 44. Bd5 {[%clk 0:00:27]}  Nf5 {[%clk 0:00:08]} 45. Ra3 {[%clk 0:00:26]}  Ne3+ {[%clk 0:00:08]} 46. Kf2 {[%clk 0:00:26]}  Nc2 {[%clk 0:00:09]} 47. Ra2 {[%clk 0:00:22]}  Nb4 {[%clk 0:00:09]} 48. Rd2 {[%clk 0:00:20]}  a5 {[%clk 0:00:07]} 49. Re2 {[%clk 0:00:19]}  Nd3+ {[%clk 0:00:07]} 50. Kg2 {[%clk 0:00:17]}  Nc1 {[%clk 0:00:08]} 51. Re6 {[%clk 0:00:17]}  Na2 {[%clk 0:00:07]} 52. Rxb6 {[%clk 0:00:17]}  Nc3 {[%clk 0:00:07]} 53. Ra6 {[%clk 0:00:18]}  Ke5 {[%clk 0:00:07]} 54. Rxa5 {[%clk 0:00:18]}  Kd4 {[%clk 0:00:07]} 55. Ra8 {[%clk 0:00:19]}  Ne2 {[%clk 0:00:05]} 56. a5 {[%clk 0:00:19]}  Nf4+ {[%clk 0:00:06]} 57. Kg3 {[%clk 0:00:20]}  Ne2+ {[%clk 0:00:06]} 58. Kxg4 {[%clk 0:00:21]} 1-0


[Site "https://www.chess.com"]

[Event "Titled Tuesday Blitz November 15 Late 2022"]
[White "Sivakumar, Shaashwath"]
[Black "Do Nascimento,Christian Almeida"]
[WhiteFideId "30912156"]
[BlackFideId "2143801"]
[WhiteElo "2137"]
[BlackElo "2079"]
[Result "1-0"]
[Round "03"]
[TimeControl "180+1"]
[Date "2022.11.16"]
[WhiteClock "0:00:56"]
[BlackClock "0:00:57"]

1. d4 {[%clk 0:02:42]}  Nf6 {[%clk 0:02:58]} 2. Bf4 {[%clk 0:02:39]}  g6 {[%clk 0:02:58]} 3. Nc3 {[%clk 0:02:38]}  Bg7 {[%clk 0:02:59]} 4. e4 {[%clk 0:02:38]}  d6 {[%clk 0:02:58]} 5. Qd2 {[%clk 0:02:38]}  O-O {[%clk 0:02:57]} 6. O-O-O {[%clk 0:02:34]}  c6 {[%clk 0:02:57]} 7. Bh6 {[%clk 0:02:33]}  b5 {[%clk 0:02:57]} 8. f3 {[%clk 0:02:32]}  Qa5 {[%clk 0:02:40]} 9. h4 {[%clk 0:02:28]}  b4 {[%clk 0:02:38]} 10. Nb1 {[%clk 0:02:26]}  Be6 {[%clk 0:02:27]} 11. h5 {[%clk 0:02:23]}  Bxa2 {[%clk 0:02:15]} 12. g4 {[%clk 0:01:53]}  Bxb1 {[%clk 0:02:04]} 13. Kxb1 {[%clk 0:01:46]}  Nbd7 {[%clk 0:01:51]} 14. Bxg7 {[%clk 0:01:06]}  Kxg7 {[%clk 0:01:52]} 15. hxg6 {[%clk 0:01:06]}  fxg6 {[%clk 0:01:53]} 16. Qh6+ {[%clk 0:01:06]}  Kg8 {[%clk 0:01:52]} 17. e5 {[%clk 0:01:06]}  dxe5 {[%clk 0:01:47]} 18. Bc4+ {[%clk 0:01:03]}  Kh8 {[%clk 0:01:40]} 19. g5 {[%clk 0:00:59]}  Nh5 {[%clk 0:01:07]} 20. Rxh5 {[%clk 0:00:58]}  gxh5 {[%clk 0:01:08]} 21. g6 {[%clk 0:00:58]}  Rf7 {[%clk 0:00:57]} 22. Bxf7 {[%clk 0:00:56]} 1-0


[Site "https://www.chess.com"]

[Event "Titled Tuesday Blitz November 15 Late 2022"]
[White "Sohal, Tanraj"]
[Black "Shapiro, Daniel"]
[WhiteFideId "2608499"]
[BlackFideId "2001780"]
[WhiteElo "2200"]
[BlackElo "2322"]
[Result "1-0"]
[Round "03"]
[TimeControl "180+1"]
[Date "2022.11.16"]
[WhiteClock "0:00:54"]
[BlackClock "0:00:01"]

1. e4 {[%clk 0:03:00]}  e5 {[%clk 0:02:59]} 2. Nf3 {[%clk 0:03:01]}  Nc6 {[%clk 0:02:58]} 3. Bc4 {[%clk 0:03:02]}  Be7 {[%clk 0:02:57]} 4. d4 {[%clk 0:03:01]}  d6 {[%clk 0:02:56]} 5. O-O {[%clk 0:02:57]}  Nf6 {[%clk 0:02:55]} 6. d5 {[%clk 0:02:58]}  Nb8 {[%clk 0:02:55]} 7. Qe2 {[%clk 0:02:56]}  O-O {[%clk 0:02:51]} 8. Bd3 {[%clk 0:02:56]}  Ne8 {[%clk 0:02:46]} 9. c4 {[%clk 0:02:53]}  g6 {[%clk 0:02:46]} 10. Bh6 {[%clk 0:02:52]}  Ng7 {[%clk 0:02:47]} 11. Nc3 {[%clk 0:02:44]}  a5 {[%clk 0:02:47]} 12. h3 {[%clk 0:02:42]}  Na6 {[%clk 0:02:46]} 13. g4 {[%clk 0:02:42]}  Nc5 {[%clk 0:02:44]} 14. Bc2 {[%clk 0:02:42]}  Bd7 {[%clk 0:02:43]} 15. Kg2 {[%clk 0:02:33]}  a4 {[%clk 0:02:42]} 16. Rh1 {[%clk 0:02:33]}  Kh8 {[%clk 0:02:28]} 17. Rag1 {[%clk 0:02:32]}  f6 {[%clk 0:02:17]} 18. Kf1 {[%clk 0:02:29]}  c6 {[%clk 0:02:09]} 19. h4 {[%clk 0:02:28]}  Qc8 {[%clk 0:02:02]} 20. g5 {[%clk 0:02:20]}  Bg4 {[%clk 0:01:54]} 21. gxf6 {[%clk 0:02:01]}  Rxf6 {[%clk 0:01:46]} 22. Bxg7+ {[%clk 0:02:00]}  Kxg7 {[%clk 0:01:44]} 23. Rg3 {[%clk 0:01:59]}  h5 {[%clk 0:01:41]} 24. Qe3 {[%clk 0:01:58]}  Qf8 {[%clk 0:01:13]} 25. Ng5 {[%clk 0:01:57]}  Rf4 {[%clk 0:01:05]} 26. Ne2 {[%clk 0:01:51]}  Bxg5 {[%clk 0:00:56]} 27. hxg5 {[%clk 0:01:50]}  Bxe2+ {[%clk 0:00:53]} 28. Kxe2 {[%clk 0:01:48]}  Qe7 {[%clk 0:00:38]} 29. Rh2 {[%clk 0:01:43]}  Raf8 {[%clk 0:00:37]} 30. b4 {[%clk 0:01:43]}  axb3 {[%clk 0:00:36]} 31. axb3 {[%clk 0:01:43]}  cxd5 {[%clk 0:00:30]} 32. cxd5 {[%clk 0:01:42]}  Rc8 {[%clk 0:00:26]} 33. Kd2 {[%clk 0:01:39]}  Qc7 {[%clk 0:00:24]} 34. b4 {[%clk 0:01:36]}  Nxe4+ {[%clk 0:00:20]} 35. Bxe4 {[%clk 0:01:28]}  Qc1+ {[%clk 0:00:20]} 36. Ke2 {[%clk 0:01:28]}  Qa1 {[%clk 0:00:08]} 37. Rh1 {[%clk 0:01:21]}  Qb2+ {[%clk 0:00:07]} 38. Kf1 {[%clk 0:01:19]}  Rc1+ {[%clk 0:00:05]} 39. Kg2 {[%clk 0:01:20]}  Rxh1 {[%clk 0:00:04]} 40. Kxh1 {[%clk 0:01:20]}  Qxb4 {[%clk 0:00:04]} 41. f3 {[%clk 0:01:13]}  Qb2 {[%clk 0:00:03]} 42. Rg2 {[%clk 0:01:00]}  Qa1+ {[%clk 0:00:02]} 43. Kh2 {[%clk 0:00:54]}  Qd4 {[%clk 0:00:01]} 44. Qxd4 {[%clk 0:00:54]}  exd4 {[%clk 0:00:02]} 45. Rd2 {[%clk 0:00:53]}  d3 {[%clk 0:00:01]} 46. Rxd3 {[%clk 0:00:54]} 1-0


[Site "https://www.chess.com"]

[Event "Titled Tuesday Blitz November 15 Late 2022"]
[White "Sreyas Payyappat"]
[Black "Garcia Pantoja, Roberto"]
[WhiteFideId "46674969"]
[BlackFideId "3509265"]
[WhiteElo "2083"]
[BlackElo "2524"]
[Result "0-1"]
[Round "03"]
[TimeControl "180+1"]
[Date "2022.11.16"]
[WhiteClock "0:00:08"]
[BlackClock "0:00:28"]

1. e4 {[%clk 0:03:00]}  c5 {[%clk 0:02:59]} 2. Nf3 {[%clk 0:03:01]}  d6 {[%clk 0:02:59]} 3. d4 {[%clk 0:03:02]}  cxd4 {[%clk 0:03:00]} 4. Nxd4 {[%clk 0:03:03]}  Nf6 {[%clk 0:03:01]} 5. Nc3 {[%clk 0:03:03]}  a6 {[%clk 0:03:01]} 6. f4 {[%clk 0:03:03]}  e5 {[%clk 0:03:01]} 7. Nf3 {[%clk 0:03:02]}  Nbd7 {[%clk 0:03:01]} 8. f5 {[%clk 0:03:01]}  b5 {[%clk 0:02:59]} 9. Bg5 {[%clk 0:03:01]}  Bb7 {[%clk 0:02:58]} 10. g4 {[%clk 0:02:56]}  Rc8 {[%clk 0:02:54]} 11. Bg2 {[%clk 0:02:51]}  Qb6 {[%clk 0:02:53]} 12. Bxf6 {[%clk 0:02:40]}  Nxf6 {[%clk 0:02:52]} 13. Nd2 {[%clk 0:02:36]}  Qe3+ {[%clk 0:02:47]} 14. Qe2 {[%clk 0:02:35]}  Nxg4 {[%clk 0:02:46]} 15. Bf3 {[%clk 0:02:19]}  Rxc3 {[%clk 0:02:32]} 16. bxc3 {[%clk 0:02:02]}  Qxc3 {[%clk 0:02:33]} 17. O-O {[%clk 0:01:36]}  Nf6 {[%clk 0:02:22]} 18. Rab1 {[%clk 0:01:28]}  Bc6 {[%clk 0:01:57]} 19. a4 {[%clk 0:01:23]}  Qc5+ {[%clk 0:01:56]} 20. Kh1 {[%clk 0:01:21]}  Be7 {[%clk 0:01:55]} 21. Nb3 {[%clk 0:01:19]}  Qc3 {[%clk 0:01:51]} 22. Qg2 {[%clk 0:00:59]}  O-O {[%clk 0:01:41]} 23. Rg1 {[%clk 0:00:59]}  g6 {[%clk 0:01:41]} 24. axb5 {[%clk 0:00:55]}  axb5 {[%clk 0:01:38]} 25. Ra1 {[%clk 0:00:55]}  Ra8 {[%clk 0:01:21]} 26. Rxa8+ {[%clk 0:00:54]}  Bxa8 {[%clk 0:01:21]} 27. Ra1 {[%clk 0:00:49]}  Bc6 {[%clk 0:01:18]} 28. Ra7 {[%clk 0:00:40]}  Nxe4 {[%clk 0:01:03]} 29. Ra1 {[%clk 0:00:19]}  Nf2+ {[%clk 0:00:55]} 30. Qxf2 {[%clk 0:00:19]}  Bxf3+ {[%clk 0:00:56]} 31. Kg1 {[%clk 0:00:18]}  Bg5 {[%clk 0:00:54]} 32. Re1 {[%clk 0:00:17]}  Kg7 {[%clk 0:00:48]} 33. h4 {[%clk 0:00:16]}  Bf4 {[%clk 0:00:47]} 34. Kf1 {[%clk 0:00:15]}  gxf5 {[%clk 0:00:43]} 35. Kg1 {[%clk 0:00:15]}  Kf6 {[%clk 0:00:38]} 36. Kf1 {[%clk 0:00:14]}  Bd5 {[%clk 0:00:37]} 37. Rd1 {[%clk 0:00:09]}  Qh3+ {[%clk 0:00:35]} 38. Ke2 {[%clk 0:00:08]}  Bc4+ {[%clk 0:00:34]} 39. Rd3 {[%clk 0:00:07]}  Qg4+ {[%clk 0:00:28]} 40. Ke1 {[%clk 0:00:07]}  Bxd3 {[%clk 0:00:28]} 41. cxd3 {[%clk 0:00:08]}  Bg3 {[%clk 0:00:28]} 0-1


[Site "https://www.chess.com"]